fUSD/lending_fUSD_20241127
["ID","MTS","AMOUNT","RATE_DAILY","PERIOD"]
[343504928,1732696232048,-150.0,9.899e-05,2]
[343504929,1732696232057,-1055.32311065,9.9e-05,2]
[343504930,1732696232107,-1444.67688935,9.9e-05,2]
[343504931,1732696232116,-12902.74573243,9.9e-05,2]
[343504932,1732696232128,-237097.25426757,9.9e-05,2]
[343504933,1732696232137,-1105.55326804,9.9e-05,2]
[343504934,1732696232149,-35070.87051947,9.971e-05,2]
[343504935,1732696232159,-14408.2120274,9.971e-05,2]
[343504936,1732696232170,-1935.1754962,9.971e-05,2]
[343504937,1732696233674,-15838.12378325,9.971e-05,2]
[343504942,1732696237977,-2889.35921262,9.971e-05,2]
[343504943,1732696237987,-1351.12658513,9.971e-05,2]
[343504944,1732696237996,-4860.22954547,9.973e-05,2]
[343504945,1732696238038,-535.74786695,9.973e-05,2]
[343504946,1732696238078,-4669.86302421,9.973e-05,2]
[343504947,1732696238090,-344.76310585,9.973e-05,2]
[343504948,1732696238117,-566.76354058,9.973e-05,2]
[343504949,1732696238136,-4392.91305409,9.973e-05,2]
[343504950,1732696238233,-358.33485164,9.973e-05,2]
[343504951,1732696238256,-268168.51372059,9.973e-05,2]
[343504952,1732696238280,-500.0,9.973e-05,2]
[343504953,1732696238294,-500.60198426,9.973e-05,2]
[343504954,1732696238312,-283897.12870938,9.973e-05,2]
[343504956,1732696238326,-310.41547081,9.973e-05,2]
[343504959,1732696238344,-49842.46400513,9.973e-05,2]
[343504962,1732696238358,-40881.61574037,9.974e-05,2]
[343504965,1732696238379,-1351.12658513,9.974e-05,2]
[343504968,1732696238393,-49842.46400513,9.974e-05,2]
[343504970,1732696238408,-49842.46400513,9.976e-05,2]
[343504973,1732696238423,-35070.87051947,9.979e-05,2]
[343504975,1732696238438,-35070.87051947,9.979e-05,2]
[343504978,1732696238454,-49842.46400513,9.979e-05,2]
[343504981,1732696238469,-283897.12870938,9.979e-05,2]
[343504983,1732696238483,-40881.61574037,9.979e-05,2]
[343504986,1732696238498,-40881.61574037,9.98e-05,2]
[343504990,1732696238517,-49842.46400513,9.981e-05,2]
[343504993,1732696238532,-310.41547081,9.981e-05,2]
[343504996,1732696238547,-1351.12658513,9.983e-05,2]
[343504998,1732696238561,-310.41547081,9.983e-05,2]
[343505001,1732696238576,-1005463.1895787,9.984e-05,2]
[343505004,1732696238592,-1005463.1895787,9.985e-05,2]
[343505008,1732696238606,-49842.46400513,9.986e-05,2]
[343505011,1732696238622,-310.41547081,9.986e-05,2]
[343505013,1732696238638,-283897.12870938,9.987e-05,2]
[343505016,1732696238653,-5763.25158833,9.987e-05,2]
[343505019,1732696238668,-310.41547081,9.988e-05,2]
[343505021,1732696238683,-40881.61574037,9.989e-05,2]
[343505024,1732696238699,-1351.12658513,9.989e-05,2]
[343505026,1732696238713,-664.21960548,9.99e-05,2]
[343505029,1732696238729,-664.21960548,9.99e-05,2]
[343505032,1732696238744,-664.21960548,9.99e-05,2]
[343505034,1732696238759,-664.21960548,9.99e-05,2]
[343505037,1732696238773,-664.21960548,9.99e-05,2]
[343505039,1732696238788,-664.21960548,9.99e-05,2]
[343505042,1732696238803,-664.21960548,9.99e-05,2]
[343505044,1732696238818,-664.21960548,9.99e-05,2]
[343505047,1732696238833,-310.41547081,9.99e-05,2]
[343505050,1732696238848,-40881.61574037,9.991e-05,2]
[343505052,1732696238863,-1351.12658513,9.991e-05,2]
[343505055,1732696238877,-35070.87051947,9.993e-05,2]
[343505057,1732696238892,-1005463.1895787,9.993e-05,2]
[343505060,1732696238907,-664.21960548,9.993e-05,2]
[343505063,1732696238922,-1005463.1895787,9.994e-05,2]
[343505065,1732696238937,-35070.87051947,9.994e-05,2]
[343505068,1732696238952,-1351.12658513,9.995e-05,2]
[343505071,1732696238967,-283897.12870938,9.996e-05,2]
[343505073,1732696238982,-40881.61574037,9.997e-05,2]
[343505076,1732696238996,-872.1658682,9.997e-05,2]
[343505078,1732696239011,-283897.12870938,9.997e-05,2]
[343505081,1732696239027,-1005463.1895787,9.998e-05,2]
[343505084,1732696239042,-1005463.1895787,9.999e-05,2]
[343505086,1732696239056,-1684.82490075,9.999e-05,2]
[343505089,1732696239071,-1036.4096137,9.999e-05,3]
[343505092,1732696239086,-1036.4096137,9.999e-05,3]
[343505094,1732696239102,-1036.4096137,9.999e-05,3]
[343505095,1732696239117,-1036.4096137,9.999e-05,3]
[343505096,1732696239132,-1036.4096137,9.999e-05,3]
[343505097,1732696239149,-1036.4096137,9.999e-05,3]
[343505098,1732696239163,-1036.40961369,9.999e-05,3]
[343505100,1732696239179,-5763.25158837,0.0001,2]
[343505102,1732696239194,-6590024.14651863,0.0001,2]
[343505104,1732696239208,-213.33234164,0.0001,2]
[343505107,1732696239223,-2605.60224483,0.0001,2]
[343505109,1732696239238,-8011.14046629,0.0001,2]
[343505112,1732696239253,-300.0,0.0001,2]
[343505115,1732696239268,-215.27195727,0.0001,2]
[343505117,1732696239283,-63699.05102975,0.0001,2]
[343505120,1732696239298,-177.62150633,0.0001,2]
[343505122,1732696239314,-1735.89830985,0.0001,2]
[343505125,1732696239329,-2194.35341,0.0001,2]
[343505128,1732696239345,-166.83757373,0.0001,2]
[343505130,1732696239360,-87650947.74088548,0.0001,2]
[343505133,1732696239378,-478.31959918,0.0001,2]
[343505136,1732696239395,-540.65357155,0.0001,2]
[343505252,1732696240487,-112932.51061306,0.0001,2]
[343505254,1732696240498,-40787.09657367,0.0001,2]
[343505256,1732696240509,-4649.33949497,0.0001,2]
[343505259,1732696240525,-4883.87071231,0.0001,2]
[343505278,1732696240754,-388.8658327,0.0001,2]
[343505281,1732696240776,-741.329995,0.0001,2]
[343505283,1732696240787,-1531.07736988,0.0001,2]
[343505289,1732696240824,-668.235384,0.0001,2]
[343505291,1732696240836,-795.88800709,0.0001,2]
[343505487,1732696243082,-1404.02075063,9.999e-05,2]
[343505489,1732696243091,-45347.81480445,0.0001,2]
[343505491,1732696243103,-556312.90361223,0.0001,2]
[343505501,1732696243196,-2920.49381562,0.0001,2]
[343505504,1732696243207,-4546.35910981,0.0001,2]
[343505506,1732696243221,-1416.40954309,0.0001,2]
[343505788,1732696245956,-500.0,9.973e-05,2]
[343505791,1732696245965,-45702.20229917,0.0001,2]
[343505802,1732696246016,-92240.0,0.0001,2]
[343505834,1732696246305,-280562.19579088,0.0001,2]
[343506108,1732696249307,-556312.0,0.0001,2]
[343506877,1732696267473,-150.0,9.8e-05,2]
[343506878,1732696268054,-150.0,9.8e-05,2]
[343506879,1732696268556,-150.0,9.8e-05,2]
[343506880,1732696270014,-150.0,9.8e-05,2]
[343506881,1732696270929,-188.07655592,9.8e-05,2]
[343506882,1732696272467,-150.0,9.654e-05,2]
[343506883,1732696273720,-150.0,9.654e-05,2]
[343506884,1732696274283,-150.0,9.654e-05,2]
[343506885,1732696275340,-150.0,9.654e-05,2]
[343506886,1732696275978,-150.0,9.654e-05,2]
[343506887,1732696276661,-161.19211112,9.654e-05,2]
[343506888,1732696277388,-88.80788888,9.654e-05,2]
[343506893,1732696622067,1002.0,0.00028,60]
[343506904,1732697033615,-1200.66,8.219e-05,2]
[343506905,1732697033635,-300.0,9.192e-05,2]
[343506906,1732697033659,-152.58,9.229e-05,2]
[343506907,1732697033680,-7692.71,9.287e-05,2]
[343506908,1732697033702,-250.0,9.575e-05,2]
[343506909,1732697033726,-1475.39,9.625e-05,2]
[343506910,1732697033747,-201.9,9.666e-05,2]
[343506911,1732697033768,-5256.59174408,9.8e-05,2]
[343506912,1732697033789,-150.0,9.854e-05,2]
[343506913,1732697033810,-2500.0,9.9e-05,2]
[343506914,1732697033832,-2297.3974,9.9e-05,2]
[343506915,1732697033854,-500.0,9.973e-05,2]
[343506916,1732697033876,-150.0,9.996e-05,2]
[343506917,1732697033897,-825.1886283,9.997e-05,2]
[343506918,1732697033918,-1782.58222762,9.997e-05,2]
[343506919,1732697035122,-150.0,9.997e-05,2]
[343506920,1732697035341,-150.0,9.997e-05,2]
[343506921,1732697035786,-150.0,9.997e-05,2]
[343506922,1732697035822,-150.0,9.997e-05,2]
[343506923,1732697035904,-150.0,9.997e-05,2]
[343506924,1732697035935,-150.0,9.997e-05,2]
[343506925,1732697035986,-150.0,9.997e-05,2]
[343506926,1732697036040,-150.0,9.997e-05,2]
[343506927,1732697036083,-66.48243868,9.997e-05,2]
[343506928,1732697036105,-83.51756132,9.997e-05,2]
[343506929,1732697036152,-150.0,9.997e-05,2]
[343506930,1732697036193,-150.0,9.997e-05,2]
[343506931,1732697036251,-150.0,9.997e-05,2]
[343506932,1732697036307,-150.0,9.997e-05,2]
[343506933,1732697036353,-150.0,9.997e-05,2]
[343506934,1732697036410,-150.0,9.997e-05,2]
[343506935,1732697036485,-150.0,9.997e-05,2]
[343506936,1732697036553,-150.0,9.997e-05,2]
[343506937,1732697036622,-150.0,9.997e-05,2]
[343506938,1732697036702,-150.0,9.997e-05,2]
[343506939,1732697036766,-150.0,9.997e-05,2]
[343506940,1732697036883,-150.0,9.997e-05,2]
[343506941,1732697036968,-150.0,9.997e-05,2]
[343506942,1732697037135,-150.0,9.997e-05,2]
[343506943,1732697037170,-150.0,9.997e-05,2]
[343506944,1732697037225,-249.21344408,9.997e-05,2]
[343506945,1732697037330,-150.0,9.997e-05,2]
[343506946,1732697042651,800.0,0.00026986,120]
[343506947,1732697078197,201.44844781,0.00027397,60]
[343506950,1732697097533,564.000001,0.00028,60]
[343506951,1732697102823,-150.17291958,9.899e-05,2]
[343506952,1732697103451,-149.82708042,9.899e-05,2]
[343506954,1732697112542,800.0,0.00028,120]
[343506957,1732697173701,800.0,0.00028,120]
[343506984,1732697432458,-1140.62,8.219e-05,2]
[343506985,1732697432470,-171.17,9.456e-05,2]
[343506986,1732697432481,-1000.0,9.456e-05,2]
[343506987,1732697432491,-201.9,9.542e-05,2]
[343506988,1732697432501,-150.0,9.854e-05,2]
[343506989,1732697432511,-250.0,9.892e-05,2]
[343506990,1732697432525,-300.0,9.899e-05,2]
[343506991,1732697432535,-3054.6584182,9.9e-05,2]
[343507536,1732697438116,-1150.54979686,9.9e-05,2]
[343507538,1732697438128,-902.0426997,9.9e-05,2]
[343507545,1732697438176,-7692.7114,9.9e-05,2]
[343507563,1732697438401,-337.42333,9.9e-05,2]
[343507777,1732697440442,-9379.9224,9.9e-05,2]
[343507779,1732697440453,-7999.57369751,9.9e-05,2]
[343507788,1732697440526,-7902.59464004,9.9e-05,2]
[343508044,1732697443093,-10029.33007758,9.9e-05,2]
[343508053,1732697443171,-3014.60797296,9.9e-05,2]
[343508056,1732697443182,-3170.5694409,9.9e-05,2]
[343508058,1732697443193,-1168.1499999,9.9e-05,2]
[343508060,1732697443205,-827.930001,9.9e-05,2]
[343508062,1732697443217,-6856.1,9.9e-05,2]
[343508085,1732697443462,-4643.09121821,9.9e-05,2]
[343508828,1732697451308,-161.19211112,9.8e-05,2]
[343508893,1732697452153,-161.19211112,9.8e-05,2]
[343509007,1732697453290,-161.19211112,9.8e-05,2]
[343509063,1732697453827,-161.19211112,9.8e-05,2]
[343509186,1732697455082,-161.19211112,9.8e-05,2]
[343509258,1732697456254,-161.19211112,9.8e-05,2]
[343509281,1732697456900,-161.19211112,9.8e-05,2]
[343509282,1732697457946,-161.19211112,9.8e-05,2]
[343509283,1732697458573,-161.19211112,9.8e-05,2]
[343509284,1732697459330,-150.0,9.8e-05,2]
[343509285,1732697460105,-150.0,9.8e-05,2]
[343509286,1732697460987,-150.0,9.8e-05,2]
[343509287,1732697462154,-150.0,9.8e-05,2]
[343509288,1732697464991,-150.0,9.8e-05,2]
[343509289,1732697466257,-150.0,9.8e-05,2]
[343509290,1732697466945,-150.0,9.8e-05,2]
[343509291,1732697467729,-150.0,9.493e-05,2]
[343509292,1732697468820,-100.0,9.493e-05,2]
[343509297,1732697734539,150.0,0.00028,60]
[343509298,1732697735951,150.0,0.00028,60]
[343509299,1732697736575,150.0,0.00028,60]
[343509300,1732697736899,150.0,0.00028,60]
[343509301,1732697737468,150.0,0.00028,60]
[343509302,1732697738070,150.0,0.00028,60]
[343509303,1732697738708,150.0,0.00028,60]
[343509304,1732697739452,150.0,0.00028,60]
[343509305,1732697740026,150.0,0.00028,60]
[343509306,1732697740884,150.0,0.00028,60]
[343509307,1732697741718,150.0,0.00028,60]
[343509308,1732697743266,150.0,0.00028,60]
[343509312,1732698407122,-283.43448331,8.219e-05,2]
[343509327,1732698546148,249.46156705,0.00015,15]
[343509328,1732698550634,-800.14551669,8.219e-05,2]
[343509329,1732698550667,-200.0,9.183e-05,2]
[343509330,1732698550690,-285.4,9.211e-05,2]
[343509331,1732698550714,-1479.21,9.211e-05,2]
[343509332,1732698550736,-1000.0,9.262e-05,2]
[343509333,1732698550760,-312.44,9.388e-05,2]
[343509334,1732698550783,-250.0,9.54e-05,2]
[343509335,1732698550804,-1000.0,9.6e-05,2]
[343509336,1732698550828,-3.78779992,9.8e-05,2]
[343509337,1732698551127,-32669.01668339,9.9e-05,2]
[343509343,1732698632396,-150.0,9.854e-05,2]
[343509344,1732698632406,-184.2955,9.896e-05,2]
[343509345,1732698632417,-300.0,9.899e-05,2]
[343509346,1732698632427,-925.75557141,9.9e-05,2]
[343509347,1732698632556,-684.44006345,9.9e-05,2]
[343509351,1732698638347,-1059.44494533,9.9e-05,2]
[343509352,1732698638581,-146532.08764356,9.9e-05,2]
[343509353,1732698638591,-2500.0,9.9e-05,2]
[343509354,1732698638600,-5687.0,9.9e-05,2]
[343509355,1732698638610,-4939.11675147,9.922e-05,2]
[343509356,1732698638619,-500.0,9.973e-05,2]
[343509357,1732698638629,-166.05490137,9.99e-05,2]
[343509358,1732698638638,-10114.7417934,9.991e-05,2]
[343509359,1732698638648,-276.9893493,9.996e-05,2]
[343509360,1732698638658,-288671.5681621,9.998e-05,2]
[343509361,1732698638668,-1170.01729219,9.999e-05,2]
[343509362,1732698638677,-596.017,9.999e-05,2]
[343509363,1732698638687,-183.503,9.999e-05,2]
[343509364,1732698638696,-4939.11675155,0.0001,2]
[343509365,1732698638706,-6200295.80332565,0.0001,2]
[343509366,1732698638849,-1162.69452868,0.0001,2]
[343509385,1732698640406,-1971.65,9.9e-05,2]
[343509386,1732698640419,-528.35,9.9e-05,2]
[343509387,1732698640428,-28088.4172,0.0001,2]
[343509407,1732698641907,-340.91474,0.0001,2]
[343509408,1732698643285,-975.01441016,9.999e-05,2]
[343509409,1732698643295,-2033.28831346,0.0001,2]
[343509410,1732698643307,-2489.70263021,0.0001,2]
[343509411,1732698643450,-337.88276404,0.0001,2]
[343509412,1732698643624,-536.07124041,0.0001,2]
[343509413,1732698643678,-11610.91693447,0.0001,2]
[343509414,1732698643718,-1275.05163665,0.0001,2]
[343509415,1732698643737,-314.443181,0.0001,2]
[343509636,1732698646365,-861.85342657,0.0001,2]
[343509637,1732698646383,-826.88388183,0.0001,2]
[343509638,1732698646427,-3424.1,0.0001,2]
[343509639,1732698646599,-823.459252,0.0001,2]
[343509648,1732699242952,10000.0,0.00016,7]
[343509649,1732699266379,40000.0,0.00016,7]
[343509661,1732699676992,3040.70550339,0.00013,15]
[343509676,1732699831662,-171.49,7.389e-05,2]
[343509677,1732699831671,-1310.12,8.219e-05,2]
[343509678,1732699831682,-150.0,8.858e-05,2]
[343509679,1732699831691,-200.0,9.178e-05,2]
[343509680,1732699831701,-1262.46,9.236e-05,2]
[343509681,1732699831710,-479.36,9.268e-05,2]
[343509682,1732699831719,-171.17,9.308e-05,2]
[343509683,1732699831728,-1000.0,9.386e-05,2]
[343509684,1732699831738,-250.0,9.471e-05,2]
[343509685,1732699831748,-152.58,9.668e-05,2]
[343509686,1732699831757,-300.0,9.899e-05,2]
[343509687,1732699831767,-843.3478,9.9e-05,2]
[343509688,1732699831777,-448.45611856,9.9e-05,2]
[343509689,1732699831811,-764.97588144,9.9e-05,2]
[343509690,1732699831823,-445.62899917,9.9e-05,2]
[343509691,1732699831833,-1298.20908464,9.9e-05,2]
[343509734,1732699837579,-248701.79091536,9.9e-05,2]
[343509735,1732699837589,-2500.0,9.9e-05,2]
[343509736,1732699837599,-792.13,9.909e-05,2]
[343509737,1732699837608,-1821.39997995,9.949e-05,2]
[343509738,1732699837619,-476.814,9.949e-05,2]
[343509739,1732699837628,-36637.25331227,9.95e-05,2]
[343509740,1732699837638,-160.86257822,9.973e-05,2]
[343509741,1732699837648,-500.0,9.973e-05,2]
[343509742,1732699837658,-2848.25693126,9.974e-05,2]
[343509743,1732699837668,-2848.25693126,9.983e-05,2]
[343509744,1732699837678,-2848.25693126,9.99e-05,2]
[343509745,1732699837688,-2848.25693126,9.99e-05,2]
[343509746,1732699837698,-2848.25693126,9.993e-05,2]
[343509747,1732699837709,-2848.25693126,9.997e-05,2]
[343509748,1732699837719,-8415.4651721,9.997e-05,2]
[343509749,1732699837729,-7145.6530136,9.997e-05,2]
[343509750,1732699837740,-2062.6627256,9.997e-05,2]
[343509751,1732699837749,-10715.4225507,9.997e-05,2]
[343509752,1732699837759,-2096.328528,9.997e-05,2]
[343509753,1732699837769,-1036.4096137,9.999e-05,3]
[343509754,1732699837779,-1036.4096137,9.999e-05,3]
[343509755,1732699837788,-1288.31904062,9.999e-05,2]
[343509756,1732699837798,-7329279.16016446,0.0001,2]
[343509757,1732699837807,-300.0,0.0001,2]
[343509758,1732699837817,-63699.05102975,0.0001,2]
[343509759,1732699837827,-1735.89830985,0.0001,2]
[343509760,1732699837836,-215.27195727,0.0001,2]
[343509761,1732699837845,-2194.35341,0.0001,2]
[343509762,1732699837855,-86133634.76487888,0.0001,2]
[343509763,1732699837884,-3938.5210553,0.0001,2]
[343509764,1732699837895,-487.9704894,0.0001,2]
[343509841,1732699839475,-1798.700001,0.0001,2]
[343509842,1732699839536,-12787.22287967,0.0001,2]
[343509843,1732699839548,-88768.33633339,0.0001,2]
[343509844,1732699839559,-60226.30896164,0.0001,2]
[343509859,1732699842603,-250.0,9.659e-05,2]
[343509860,1732699842613,-2636.23424375,0.0001,2]
[343509861,1732699842625,-19578.38266058,0.0001,2]
[343509862,1732699842636,-3734.19300374,0.0001,2]
[343509863,1732699842647,-1420.00082446,0.0001,2]
[343509864,1732699842659,-2371.3686264,0.0001,2]
[343509865,1732699842751,-2342.0748,0.0001,2]
[343509866,1732699842763,-9153.55646001,0.0001,2]
[343509867,1732699842903,-3793.32917532,0.0001,2]
[343509868,1732699842938,-96213.06842556,0.0001,2]
[343509869,1732699842949,-47226.82509025,0.0001,2]
[343509899,1732699845477,-627.6224359,9.999e-05,3]
[343509900,1732699845541,-408.7871778,9.999e-05,3]
[343509901,1732699845551,-926.4728682,9.999e-05,3]
[343509903,1732699943413,14430.91700092,0.00027,120]
[343509906,1732699994519,3007.22321582,0.00028,60]
[343509907,1732700249633,5000.0,0.00016,30]
[343509908,1732700343911,500.0,0.00016,30]
[343509909,1732700350433,501.74806051,0.00016,30]
[343509910,1732700392496,500.0,0.00016,30]
[343509911,1732700420734,150.0,0.00028,60]
[343509912,1732700421723,150.0,0.00028,60]
[343509913,1732700422502,150.0,0.00028,60]
[343509914,1732700424102,150.0,0.00028,60]
[343509915,1732700424436,150.0,0.00028,60]
[343509916,1732700424599,150.0,0.00028,60]
[343509917,1732700424925,150.0,0.00028,60]
[343509918,1732700425589,150.0,0.00028,60]
[343509919,1732700425780,150.0,0.00028,60]
[343509920,1732700426212,150.0,0.00028,60]
[343509921,1732700426657,150.0,0.00028,60]
[343509922,1732700427111,150.0,0.00028,60]
[343509923,1732700641575,-171.49,7.428e-05,2]
[343509924,1732700643894,-242.70608109,8.219e-05,2]
[343509925,1732700644574,-150.0,8.219e-05,2]
[343509926,1732700646184,-150.0,8.219e-05,2]
[343509927,1732700646841,-150.0,8.219e-05,2]
[343509928,1732700647584,-150.0,8.219e-05,2]
[343509929,1732700648524,-150.0,8.219e-05,2]
[343509930,1732700649632,-150.0,8.219e-05,2]
[343509931,1732700650271,-150.0,8.219e-05,2]
[343509932,1732700650915,-19.57391891,8.219e-05,2]
[343509936,1732700758686,2404.01242734,0.000166,15]
[343509937,1732700801958,50000.0,0.00016,7]
[343509950,1732701031839,-250.0,9.383e-05,2]
[343509951,1732701031849,-152.58,9.428e-05,2]
[343509952,1732701031860,-2000.0,9.471e-05,2]
[343509953,1732701031869,-1000.0,9.507e-05,2]
[343509954,1732701031882,-249.95,9.517e-05,2]
[343509955,1732701031892,-31361.026,9.7e-05,2]
[343509956,1732701031902,-28811.18164767,9.79e-05,2]
[343509957,1732701031912,-235435.5898,9.8e-05,2]
[343509958,1732701031922,-3986.6185,9.8e-05,2]
[343509959,1732701031931,-22972.5065,9.8e-05,2]
[343509960,1732701031941,-2500.0,9.9e-05,2]
[343509961,1732701031950,-500.0,9.973e-05,2]
[343509962,1732701031960,-330.86,9.973e-05,2]
[343509963,1732701031970,-7141.88,9.973e-05,2]
[343509964,1732701031979,-162.85,9.973e-05,2]
[343509965,1732701031989,-150.99,9.973e-05,2]
[343509966,1732701031999,-299.99,9.973e-05,2]
[343509967,1732701032009,-8010.6,9.973e-05,2]
[343509968,1732701032018,-500.0,9.973e-05,2]
[343509969,1732701032028,-248.03393619,9.99e-05,2]
[343509970,1732701032038,-248.03393619,9.99e-05,2]
[343509971,1732701032049,-248.03393619,9.99e-05,2]
[343509972,1732701032059,-248.03393619,9.99e-05,2]
[343509973,1732701032069,-248.03393619,9.99e-05,2]
[343509974,1732701032079,-248.03393619,9.99e-05,2]
[343509975,1732701032089,-248.03393619,9.99e-05,2]
[343509976,1732701032098,-248.03393619,9.99e-05,2]
[343509977,1732701032108,-248.03393619,9.99e-05,2]
[343509978,1732701032118,-1556.3601822,9.995e-05,2]
[343509979,1732701032127,-1568.1236165,9.995e-05,2]
[343509980,1732701032137,-109.9367455,9.999e-05,3]
[343509981,1732701032147,-1036.4096137,9.999e-05,3]
[343509982,1732701032156,-1073.59920052,9.999e-05,2]
[343509983,1732701032166,-1957.21121926,9.999e-05,2]
[343509984,1732701032175,-500.655,9.999e-05,2]
[343509985,1732701032185,-183.503,9.999e-05,2]
[343509986,1732701032195,-74739.97925444,0.0001,2]
[343509987,1732701032207,-226932.454409,0.0001,2]
[343509988,1732701032225,-932.83,0.0001,2]
[343510015,1732701032634,-89844.67044196,0.0001,2]
[343510024,1732701037928,-894.66600043,9.999e-05,2]
[343510025,1732701037939,-576.28422217,0.0001,2]
[343510026,1732701037951,-335.06635495,0.0001,2]
[343510027,1732701037973,-7397423.7348713,0.0001,2]
[343510028,1732701037984,-24809.2491875,0.0001,2]
[343510041,1732701038174,-22505.9044393,0.0001,2]
[343510045,1732701038203,-1032.43999998,0.0001,2]
[343510050,1732701039646,-23991.89230071,0.0001,2]
[343510051,1732701039752,-1875.0397833,0.0001,2]
[343510052,1732701039767,-528.44412655,0.0001,2]
[343510053,1732701039796,-1026.707,0.0001,2]
[343510066,1732701043527,-443.23427053,0.0001,2]
[343510067,1732701043546,-139472.93890975,0.0001,2]
[343510068,1732701043620,-18820.54727162,0.0001,2]
[343510069,1732701043636,-83973.78381211,0.0001,2]
[343510070,1732701043651,-6449.41997782,0.0001,2]
[343510071,1732701043672,-6213.23456688,0.0001,2]
[343510072,1732701043685,-27870.91708663,0.0001,2]
[343510073,1732701043740,-10405.07753271,0.0001,2]
[343510074,1732701043793,-349.88832,0.0001,2]
[343510078,1732701045820,-264.2485,9.7e-05,2]
[343510079,1732701045829,-8162.03847512,0.0001,2]
[343510080,1732701045840,-4904.47396,0.0001,2]
[343510082,1732701056674,-150.0,9.983e-05,2]
[343510083,1732701057389,-150.0,9.983e-05,2]
[343510084,1732701058242,-150.0,9.983e-05,2]
[343510085,1732701059209,-150.0,9.983e-05,2]
[343510086,1732701060021,-150.0,9.983e-05,2]
[343510087,1732701060853,-150.0,9.983e-05,2]
[343510088,1732701061648,-100.0,9.983e-05,2]
[343510089,1732701102821,50000.0,0.00016,7]
[343510093,1732701363266,1006.0,0.00028,60]
[343510094,1732701436330,1000.0,0.00028,60]
[343510095,1732701444736,1000.0,0.00028,60]
[343510102,1732701777553,-1350.01,8.219e-05,2]
[343510103,1732701777578,-293.04,9.322e-05,2]
[343510104,1732701777599,-248.26740643,9.322e-05,2]
[343510105,1732701777621,-250.0,9.413e-05,2]
[343510106,1732701777643,-212.64,9.471e-05,2]
[343510107,1732701777665,-2986.71,9.471e-05,2]
[343510108,1732701777686,-168.06,9.611e-05,2]
[343510109,1732701777706,-150.0,9.7e-05,2]
[343510110,1732701777726,-16785.4305,9.8e-05,2]
[343510111,1732701777746,-150.0,9.854e-05,2]
[343510112,1732701777766,-31225.55471852,9.88e-05,2]
[343510113,1732701777786,-2500.0,9.9e-05,2]
[343510114,1732701777806,-150752.6651533,9.9e-05,2]
[343510115,1732701777826,-200.0,9.97e-05,2]
[343510116,1732701777846,-3537.69768652,9.971e-05,2]
[343510117,1732701777866,-230.46605706,9.972e-05,2]
[343510118,1732701778058,-500.0,9.973e-05,2]
[343510119,1732701778129,-500.0,9.973e-05,2]
[343510120,1732701778150,-809.54164551,9.973e-05,2]
[343510121,1732701778171,-200.0,9.974e-05,2]
[343510122,1732701778192,-809.54164551,9.975e-05,2]
[343510123,1732701778214,-3537.69768652,9.976e-05,2]
[343510124,1732701778235,-627.17753502,9.981e-05,2]
[343510125,1732701778256,-230.46605706,9.981e-05,2]
[343510126,1732701778276,-3537.69768652,9.982e-05,2]
[343510127,1732701778297,-200.0,9.984e-05,2]
[343510128,1732701778317,-3537.69768652,9.984e-05,2]
[343510129,1732701778338,-627.17753502,9.984e-05,2]
[343510130,1732701778358,-200.0,9.985e-05,2]
[343510131,1732701778379,-809.54164551,9.985e-05,2]
[343510132,1732701778399,-230.46605706,9.985e-05,2]
[343510133,1732701778420,-200.0,9.987e-05,2]
[343510134,1732701778441,-809.54164551,9.988e-05,2]
[343510135,1732701778463,-230.46605706,9.988e-05,2]
[343510136,1732701778484,-200.0,9.99e-05,2]
[343510137,1732701778504,-248.03393619,9.99e-05,2]
[343510138,1732701778524,-3537.69768652,9.991e-05,2]
[343510139,1732701778545,-809.54164551,9.991e-05,2]
[343510140,1732701778568,-627.17753502,9.991e-05,2]
[343510141,1732701778590,-627.17753502,9.991e-05,2]
[343510142,1732701778610,-230.46605706,9.992e-05,2]
[343510143,1732701778630,-3537.69768652,9.993e-05,2]
[343510144,1732701778653,-230.46605706,9.993e-05,2]
[343510145,1732701778677,-200.0,9.993e-05,2]
[343510146,1732701778700,-809.54164551,9.994e-05,2]
[343510147,1732701778722,-627.17753502,9.995e-05,2]
[343510148,1732701778745,-1926.8700792,9.995e-05,2]
[343510149,1732701778767,-2503.4884251,9.995e-05,2]
[343510150,1732701778790,-6094.7428923,9.995e-05,2]
[343510151,1732701778810,-1178.668128,9.995e-05,2]
[343510152,1732701778832,-200.0,9.997e-05,2]